Cogmind - Beta 10.1 @@@ ROGUE MODE // 2020.10.04 @ 02:23:25 Player: Hermelin Result: Destroyed by S-10 Pest with Light Assault Rifle Performance ------------- Evolutions (0) 0 Regions Visited (1) 200 Robots Destroyed (22) 110 Value Destroyed (320) 320 Prototype IDs (0) 0 Alien Tech Used (0) 0 Bonus (0) 0 TOTAL SCORE: 630 Bonus ------- None Cogmind --------- Core Integrity 0/250 Matter 272/300 Energy 84/100 System Corruption 0% Temperature Cool (0) Movement Core (200) Ox3 Location -10/Materials Parts ------- > --- POWER (1) -------- (None) > --- PROPULSION (2) --- (None) > --- UTILITY (2) ------ Medium Storage Unit Sensor Array > --- WEAPON (2) ------- Light Assault Rifle Light Assault Rifle > --- INVENTORY (8) ---- Ion Engine High-capacity Matter Pod (95) Improved Terrain Scanner Seismic Analyzer Weapon Shielding Small Laser Mace Mace Peak State ------------ > --- POWER ------------ Ion Engine > --- PROPULSION ------- Light Treads Light Treads > --- UTILITY ---------- Medium Storage Unit Improved Terrain Scanner > --- WEAPON ----------- Mace Mace > --- INVENTORY -------- Ion Engine High-capacity Matter Pod Seismic Analyzer Tractor Beam Light Assault Rifle Mining Laser [Rating: 10] Favorites ----------- Power Ion Engine Engine Ion Engine Propulsion Light Treads Treads Light Treads Utility Improved Terrain Scanner Device Improved Terrain Scanner Storage Medium Storage Unit Weapon Mace Energy Gun Small Laser Ballistic Gun Light Assault Rifle Special Weapon Mining Laser Impact Weapon Mace Build | -11 -10 ------- Run | Scr Mat Slots Evolved . | . . Power . | . . Propulsion . | . . Utility . | . . Weapon . | . . Parts Attached 25 | 8 17 Power 2 | 1 1 Engine 2 | 1 1 Core . | . . Reactor . | . . Propulsion 2 | 2 . Treads 2 | 2 . Leg . | . . Wheel . | . . Hover . | . . Flight . | . . Utility 4 | 2 2 Device 2 | 1 1 Storage 2 | 1 1 Processor . | . . Hackware . | . . Protection . | . . Artifact . | . . Weapon 17 | 3 14 Energy Gun 3 | 1 2 Energy Cannon . | . . Ballistic Gun 8 | 2 6 Ballistic Cannon . | . . Launcher . | . . Special Weapon 1 | . 1 Impact Weapon 5 | . 5 Slashing Weapon . | . . Piercing Weapon . | . . Special Melee Weapon . | . . Unidentified Prototypes . | . . Parts Lost 6 | . 6 Power 2 | . 2 Propulsion 2 | . 2 Utility . | . . Weapon 2 | . 2 Highest Loss Streak 3 | . 3 Average Slot Usage (%) 98 | . 98 Engine 13 | . 13 Treads 27 | . 27 Device 14 | . 14 Storage 14 | . 14 Energy Gun 1 | . 1 Ballistic Gun 9 | . 9 Impact Weapon 17 | . 17 Naked Turns . | . . Heaviest Build 18 | 12 18 Greatest Support 40 | 40 40 Greatest Overweight (x) . | . . Average Overweight (x) . | . . Largest Inventory Capacity 8 | 6 8 Average Capacity 7 | 5 7 Most Carried 8 | 6 8 Average Carried 6 | 4 7 Final Capacity 8 | 6 8 Final Carried 8 | 6 8 Class Distribution -------------------- 100% | Mutant Dominant Class ---------------- Mutant | -10/Materials Resources | -11 -10 ----------- Run | Scr Mat Matter Collected 642 | 400 242 Remotely . | . . Salvage Created 698 | 199 499 Parts 39 | 18 21 Haulers Intercepted 1 | . 1 Recyclers Shooed . | . . Parts Field Recycled . | . . Retrieved Matter . | . . Parts Self-Destructed . | . . Prevented . | . . Kills | -11 -10 ------- Run | Scr Mat Combat Hostiles Destroyed 11 | . 11 Melee 3 | . 3 Guns 6 | . 6 Classes Destroyed 7 | 3 4 Worker 2 | 2 . Tunneler 4 | 4 . Hauler 1 | . 1 Recycler 3 | 1 2 Operator 1 | . 1 Swarmer 5 | . 5 Grunt 6 | . 6 Best Kill Streak 3 | 2 3 Combat Bots Only 3 | . 3 Max Kills in Single Turn 2 | 1 2 Gunslinging 1 | . 1 Exploded . | . . Melee 1 | . 1 Uniques/NPCs Destroyed . | . . Combat | -11 -10 -------- Run | Scr Mat Damage Taken 989 | . 989 Core 253 | . 253 Absorbed by Shields . | . . Core Remaining (%) 100 | 100 . Volleys Fired 48 | 21 27 Largest 2 | 2 2 Hottest 100 | 40 100 Shots Fired 92 | 42 50 Gun 91 | 42 49 Cannon . | . . Launcher . | . . Special 1 | . 1 Kinetic 74 | 42 32 Thermal 18 | . 18 Explosive . | . . Electromagnetic . | . . Robot Hit Streak 10 | 9 10 Robot Miss Streak 3 | 2 3 Penetration Max . | . . Secondary Targets 3 | . 3 Max Gunslinging Chain 1 | . 1 Shots Hit Robots 75 | 25 50 Core Hits 28 | 13 15 Critical Hits 1 | . 1 Critical Kills 1 | . 1 Critical Parts Destroyed . | . . Melee Attacks 32 | . 32 Impact 32 | . 32 Slashing . | . . Piercing . | . . Sneak Attacks 5 | . 5 Combat Hostiles 1 | . 1 Follow-up Attacks 2 | . 2 Damage Inflicted 1119 | 206 913 Guns 508 | 206 302 Cannons . | . . Explosions . | . . Melee 611 | . 611 Ramming . | . . Kinetic 365 | 206 159 Thermal 143 | . 143 Explosive . | . . Electromagnetic . | . . Impact 611 | . 611 Slashing . | . . Piercing . | . . Highest Corruption . | . . Average Corruption . | . . Corruption Purged . | . . Overload Shots . | . . Overflow Damage 108 | . 108 Projectiles . | . . Explosions . | . . Melee 108 | . 108 Knockbacks 3 | . 3 Impact 3 | . 3 Kinetic . | . . Secondary . | . . Self-Inflicted Damage . | . . Shots . | . . Rammed . | . . Targets Rammed . | . . Kicked . | . . Crushed . | . . Highest Temperature 144 | . 144 Average Temperature 65 | . 65 Received Heat Transfer 366 | . 366 Siege Activations . | . . Robots Corrupted . | . . Combat Hostiles . | . . Parts Fried 6 | . 6 Impact Corruptions 7 | . 7 Robots Melted . | . . Combat Hostiles . | . . Parts Melted 1 | . 1 Heat Transferred 325 | . 325 Parts Sabotaged . | . . Parts Stolen . | . . Parts Stripped . | . . Power Chain Reactions . | . . Missiles Intercepted . | . . Alert | -11 -10 ------- Run | Scr Mat Peak Influence 155 | 35 155 Initial 22 | . 22 Average 39 | 15 43 Maximum Alert Level . | . . Low Security (%) 100 | 100 100 Level 1 . | . . Level 2 . | . . Level 3 . | . . Level 4 . | . . Level 5 . | . . High Security . | . . Max Security . | . . Squads Dispatched 3 | . 3 Investigation 2 | . 2 Extermination . | . . Reinforcement 1 | . 1 Assault . | . . Garrison . | . . Intercept . | . . Construction Impeded . | . . Haulers Reinforced . | . . Stealth | -11 -10 --------- Run | Scr Mat Distress Signals . | . . Communications Jammed . | . . Distress Signals . | . . Times Spotted 15 | . 15 Peak Tracking Total 5 | . 5 Tactical Retreats . | . . Traps | -11 -10 ------- Run | Scr Mat Traps Triggered . | . . Indirectly . | . . Trap Hack Attempts . | . . Triggered . | . . Disarmed . | . . Reprogrammed . | . . Reused . | . . Traps Extracted . | . . Installed . | . . Triggered . | . . Machines | -11 -10 ---------- Run | Scr Mat Machines Disabled . | . . Max in Single Turn . | . . Machines Sabotaged . | . . Garrisons Compromised . | . . Overloaded Fab Kills . | . . Fab Network Shutdowns . | . . Hacking | -11 -10 --------- Run | Scr Mat Machines Accessed 4 | . 4 Terminals 4 | . 4 Fabricators . | . . Repair Stations . | . . Recycling Units . | . . Scanalyzers . | . . Garrison Access . | . . Total Hacks 14 | . 14 Successful 6 | . 6 Failed 8 | . 8 Catastrophic 1 | . 1 Database Lockouts . | . . Manual 3 | . 3 Terminals 14 | . 14 Fabricators . | . . Repair Stations . | . . Recycling Units . | . . Scanalyzers . | . . Garrison Access . | . . Terminal Hacks 6 | . 6 Record 2 | . 2 Alert Level 1 | . 1 Dispatch Records 2 | . 2 Recall Investigation 1 | . 1 Fabricator Hacks . | . . Repair Station Hacks . | . . Recycling Unit Hacks . | . . Scanalyzer . | . . Garrison Access Hacks . | . . Unauthorized Hacks . | . . Terminals . | . . Fabricators . | . . Repair Stations . | . . Recycling Units . | . . Scanalyzers . | . . Garrison Access . | . . Data Cores Recovered . | . . Used . | . . Hacking Detections 4 | . 4 Full Trace Events 2 | . 2 Feedback Events . | . . Feedback Blocked . | . . Robot Schematics Acquired . | . . Robots Built . | . . Matter . | . . Time . | . . Total Robot Build Rating . | . . Part Schematics Acquired . | . . Parts Built . | . . Matter . | . . Time . | . . Total Part Build Rating . | . . Parts Repaired . | . . Time . | . . Parts Recycled . | . . Recycled Matter . | . . Retrieved Matter . | . . Retrieved Components . | . . Parts Scanalyzed . | . . Part Schematics Acquired . | . . Parts Damaged . | . . Bothacking | -11 -10 ------------ Run | Scr Mat Used RIF Installer . | . . Robots Hacked . | . . Non-combat . | . . Combat . | . . Robot Hacks Applied . | . . Relay Couplers Released . | . . Robots Rewired . | . . Allies Hacked . | . . Hacks Repelled . | . . Allies | -11 -10 -------- Run | Scr Mat Total Allies . | . . Largest Group . | . . Highest-Rated Group . | . . Highest-Rated Ally . | . . Total Orders . | . . Ally Attacks . | . . Total Damage . | . . Kills . | . . Allies Corrupted . | . . Allies Melted . | . . Intel | -11 -10 ------- Run | Scr Mat Robot Analysis Total . | . . Derelict Logs Recovered . | . . Drone Launches . | . . Drone Recoveries . | . . Exploration | -11 -10 ------------- Run | Scr Mat Turns Passed 1463 | 237 1226 Spaces Moved 731 | 105 626 Core 5 | 5 . Treads 726 | 100 626 Legs . | . . Wheels . | . . Hover . | . . Flight . | . . Fastest Speed 50 | 50 160 Average Speed 159 | 154 160 Slowest Speed 160 | 160 160 Overloaded Moves . | . . Propulsion Burnouts . | . . Robots Hopped . | . . Cave-ins Triggered . | . . Exploration Rate (%) 26 | 5 47 Regions Visited 1 Branch Regions . Pre-discovered Areas . | . . Known Exits Taken . | . . Unknown Exits Taken 1 | 1 . Scrap Searched . | . . Spaces Dug 3 | . 3 Terrain Destroyed 3 | . 3 Melee 2 | . 2 Projectile 1 | . 1 AOE . | . . Terrain Rammed . | . . Walls Destroyed . | . . Machines Disabled . | . . Actions | -11 -10 --------- Run | Scr Mat Total 904 | 146 758 Wait 43 | . 43 Move 730 | 104 626 Hop . | . . Pick Up 23 | 13 10 Fast Attach . | . . Attach 10 | 7 3 Detach . | . . Swap 15 | 1 14 Drop 6 | . 6 Fire 48 | 21 27 Melee 29 | . 29 Ram . | . . Kick . | . . Crush . | . . Escape Stasis . | . . Rewire . | . . Trap . | . . Miscellaneous . | . . Route ------- -11/Scrapyard -10/Materials (discovered 2 exits: [*Mat] / [*Min]) History --------- Turn | Location | Event 21 | -11/Scrapyard | Discovered new exit (range 16) 238 | -11/Scrapyard | Entered Materials 315 | -10/Materials | Build established: Mutant 585 | -10/Materials | Discovered new exit (range 10) 700 | -10/Materials | Discovered new exit (range 16) 714 | -10/Materials | Core integrity fell below 50% 729 | -10/Materials | Lost 3 parts (1p2w) 1449 | -10/Materials | Core integrity fell below 20% 1464 | -10/Materials | Destroyed by S-10 Pest with Light Assault Rifle Last Messages --------------- 01411_ Dropped Mining Laser. 01412_ Acquired Sensor Array. 01415_ K-01 Serf collects debris. 01428_ Sneak attack on G-34 Mercenary. 01428_ G-34 Mercenary knocked back. 01429_ Lgt. Treads destroyed. 01441_ Ion Engine destroyed. 01449_ Destroyed Aluminum Leg. 01449_ G-34 Mercenary system corrupted by crushing effect. 01449_ G-34 Mercenary misfires. 01450_ G-34 Mercenary system terminally corrupted. 01450_ Heat Sink fried. 01450_ K-01 Serf collects debris. 01450_ Lgt. Treads destroyed. 01452_ K-01 Serf collects debris. 01454_ S-10 Pest destroyed. 01454_ Switching to secondary target: S-10 Pest. 01456_ K-01 Serf collects debris. 01462_ S-10 Pest destroyed. 01463_ K-01 Serf collects debris. Map ----- +----------------------------------------------------+ | | | ?????????????????????????????????????????????????? | | ?????????????????????????????????????????????????? | | ?????????????????????????????????????????????????? | | ?????????????????????????????????????????????????? | | ????????????????????????????????????????????????#? | | ?????????????????????????????????????????????????? | | ?????????????????????????????????????????????????? | | ?????????????????????????????????????????????????# | | ?????????????????????????????????????????????????? | | ????????????????????????????????????????#????????? | | ?????????????????????????????????????????????????? | | ?????????????????????????????????????#????????#??? | | ???????????????????????????????????????????##????? | | ????????????????????????????#?????#?????#???????#? | | ?????????????????????#????????????????############ | | ??????????????????????????????? ??????# | | ??????????????????????????????????#???# | | ?????????????# ???? ? ?????????? ?????# | | ?????????????# ???????###??? ??????# """ """ | | ?????????????# ??????????????##??#?# """ """ | | ?????????????# ????????#??????#### """ """ | | ?????????????# [ #############?#?#" | | ?????????????# k [ #?#?#########+### | | ???????????#?# k *%=% #?###???# | | ????????????#T s @ ##??#?#?# """ | | ?????????????# ########### #?####### """ | | ??????????????????#???#?#??#* ! #?# # """ | | ??????????????????###########|=!#### # % | | ??????????????????# #*! #??# T + """ | | ?????????????????## "T" +* #?## % # """ | | ?????????????? ???# """ # #### # """ | | ??????????????????# ! # #??## ## | | ??????????????????########### #??## ########## | | ????????????????#???###??##?# ###?# ## | | ???????????????????#""|"|???# #?#?# ## T | | ?????????????????#?# "|"|"??# #??## ## | | ?????????????????### ## ##### ## """ | | ?????????????? %## """"" | | ?????????????? < ## """"" | | ?????????????? ## """"" | | ????????????????#+## ##+####### ## """ | | ???????????????????######### ???? ??# ## | | ???????????????????????????# ??? ?#?# ########## | | ???????????????? ??????##?## ??? ??## #?#?#?#??? | | ????????????????????????#??????"????# ##???????# | | ??????????????????????????## ?"" #?# #??##?#### | | ?????????????????????????#????"? ?### ########## | | ??????????????????????#?#?#######???# # | | ???????????????????????#?#????#??#?## # | +----------------------------------------------------+ Best States ------------- Heat Dissipation 25 Energy Generation 10 Energy Capacity 250 Matter Stores 300 Matter Capacity 300 Sight Range 16 Robot Scan Range 10 Terrain Scan Range 16 Terrain Scan Density 10 Evasion (%) 40 Recoil Reduction 2 Item Schematics ----------------- None Robot Schematics ------------------ None Fabricated ------------ Nothing Alien Tech Used ----------------- None Achievements -------------- None Challenges ------------ None Game ------ Seed PhaseEnergyChip Manual? 0 Play Time 00:43:58 Cumulative 310.6 hours Start 2020.10.04 @ 01:25:19 End 2020.10.04 @ 02:23:25 Sessions 1 Manual Loads 0 Difficulty Rogue Special Mode None Game No. 122 Rogue 122 Adventurer 0 Explorer 0 Win Type - Total 4 Types 3/0/0/1/0/0/0/0/0 Lore% 84 Gallery% 90 Achievement% 71 Wizard Run 0 Options --------- ASCII 0 Keyboard 0 Movement Numpad Keybinds 0 Fullscreen 1 Font 18/SmallcapsGlow Map View 76x50 Tactical HUD 1 Map Filters NONE Filters NONE Steam X RUN: 26978821-301b-402d-90b6-e0d18e309a68